bitfinex-derivatives/quotes_ETHF0:USTF0_20250405
["timestamp","ask_amount","ask_price","bid_price","bid_amount"]
[1743835004386,0.64262477,1810.1,1810.0,1.42412314]
[1743835009979,0.64262477,1810.1,1810.0,1.42421977]
[1743835010788,0.64262477,1810.1,1810.0,0.76108977]
[1743835010977,2.03142477,1810.1,1810.0,0.76108977]
[1743835011181,3.51332477,1810.1,1810.0,0.76108977]
[1743835011492,0.66324,1809.8,1809.7,1.37404]
[1743835011785,0.66324,1809.8,1809.7,2.08991477]
[1743835011975,0.66324,1809.8,1809.7,3.37919316]
[1743835012287,0.66324,1809.8,1809.7,6.58699316]
[1743835013184,0.66324,1809.8,1809.7,6.58697]
[1743835013988,0.66323,1809.9,1809.8,0.6632]
[1743835014188,0.66323,1809.9,1809.8,1.42438004]
[1743835016180,0.6632,1810.0,1809.9,0.66316]
[1743835016384,0.6632,1810.0,1809.9,2.90954004]
[1743835021790,3.08939,1810.3,1810.1,0.6631]
[1743835021994,2.77905,1810.3,1810.2,2.8985]
[1743835022289,6.26405,1810.3,1810.2,2.8985]
[1743835023698,5.601,1810.3,1809.9,3.2078]
[1743835023990,0.66316,1810.0,1809.9,0.66317]
[1743835024192,0.66316,1810.0,1809.9,0.64264477]
[1743835024389,2.08075,1810.1,1810.0,0.66316]
[1743835024587,1.65809,1809.9,1809.3,3.2078]
[1743835024794,0.66338,1809.5,1809.4,0.66337]
[1743835024986,0.66338,1809.4,1809.3,2.79339]
[1743835025793,4.18037,1809.5,1809.4,0.66338]
[1743835025994,4.18037,1809.5,1809.4,2.08128]
[1743835026293,4.18037,1809.5,1809.4,1.4179]
[1743835026793,4.18037,1809.5,1809.4,2.08128]
[1743835028693,0.66337,1809.5,1809.4,2.08128]
[1743835034691,0.66337,1809.5,1808.9,0.66355]
[1743835034692,0.66356,1809.0,1808.9,0.66355]
[1743835034892,3.2078,1809.2,1809.1,0.66349]
[1743835035195,4.6924,1809.4,1809.2,0.02052523]
[1743835035396,3.87119,1809.4,1809.3,0.66342]
[1743835035595,3.85066477,1809.4,1809.3,0.66342]
[1743835035800,3.18727477,1809.4,1809.3,2.05502]
[1743835036694,3.18727477,1809.4,1809.3,2.80833104]
[1743835039084,0.66335,1809.5,1809.3,2.80833104]
[1743835039289,0.66335,1809.5,1809.4,2.13158]
[1743835040997,0.66335,1809.5,1809.4,2.88529676]
[1743835042799,0.66335,1809.5,1809.4,2.88538644]
[1743835043196,0.66335,1809.5,1809.4,2.88543401]
[1743835044598,3.2078,1809.6,1809.4,1.4682]
[1743835044800,3.21606834,1809.8,1809.7,0.66327]
[1743835045103,3.87930834,1809.8,1809.7,0.66327]
[1743835045400,0.66327,1809.7,1809.6,2.85528]
[1743835045590,0.66327,1809.7,1809.6,1.36208]
[1743835045902,0.66327,1809.7,1809.6,2.11602185]
[1743835046294,3.87933834,1809.8,1809.7,0.66327]
[1743835047402,3.2078,1810.3,1809.7,2.5]
[1743835047599,23.59795968,1810.7,1810.3,1.65764]
[1743835047810,24.99375968,1810.7,1810.4,1.5200198]
[1743835047998,0.66298,1810.5,1810.4,1.42909]
[1743835048300,2.05877,1810.6,1810.5,0.66298]
[1743835048601,1.3958,1810.6,1810.4,0.7661]
[1743835048799,1.3958,1810.5,1810.4,0.7661]
[1743835049703,2.05878,1810.5,1810.4,1.42909]
[1743835050105,1.3958,1810.5,1810.4,1.42909]
[1743835055210,2.05878,1810.5,1810.4,0.66299]
[1743835056713,1.3958,1810.5,1810.4,0.66299]
[1743835056914,2.05878,1810.5,1810.4,0.66299]
[1743835057506,1.3958,1810.5,1810.4,0.66299]
[1743835057907,2.05878,1810.5,1810.4,0.66299]
[1743835058110,1.3958,1810.5,1810.4,0.66299]
[1743835063313,1.3958,1810.5,1810.4,2.16899]
[1743835065216,1.3958,1810.5,1810.1,7.26159]
[1743835065217,0.66315,1810.1,1810.0,0.66312]
[1743835065815,2.18875,1810.1,1810.0,0.66312]
[1743835066320,1.5256,1810.1,1810.0,0.66312]
[1743835066512,2.18873,1810.1,1810.0,0.66312]
[1743835067015,1.5256,1810.1,1810.0,0.66312]
[1743835067217,2.18873,1810.1,1810.0,0.66312]
[1743835068418,3.2078,1810.5,1810.2,0.66309]
[1743835068715,7.47881,1810.5,1810.4,0.663]
[1743835069112,3.87081,1810.5,1810.4,0.663]
[1743835070221,0.66302,1810.4,1810.3,2.14943]
[1743835070924,3.87081,1810.5,1810.4,0.66302]
[1743835073023,0.66301,1810.5,1810.4,0.66302]
[1743835073523,3.87081,1810.5,1810.4,0.66302]
[1743835078125,3.87081,1810.5,1810.4,2.11122]
[1743835082420,3.2078,1810.5,1810.4,2.11122]
[1743835082620,4.26995,1810.6,1810.5,0.66298]
[1743835082826,4.26995,1810.6,1810.5,3.63848]
[1743835082827,3.607,1810.6,1810.5,3.63848]
[1743835083025,6.8080921,1810.7,1810.6,0.66294]
[1743835083228,6.8080921,1810.7,1810.6,2.15774]
[1743835083431,3.2160921,1810.7,1810.6,2.15774]
[1743835083734,3.8790321,1810.7,1810.6,2.15774]
[1743835085634,0.0082921,1810.7,1810.6,2.91287175]
[1743835086725,0.0082921,1810.7,1810.6,2.91266788]
[1743835088634,0.6712021,1810.7,1810.6,1.41757578]
[1743835088836,0.66294,1810.6,1810.5,0.66295]
[1743835089136,6.7140321,1810.7,1810.6,0.66294]
[1743835089638,6.0171321,1810.7,1810.6,0.66294]
[1743835091937,5.2968321,1810.7,1810.6,0.66294]
[1743835094338,2.0890321,1810.7,1810.6,0.66294]
[1743835098146,0.6712021,1810.7,1810.6,2.80998911]
[1743835098443,0.6712021,1810.7,1810.6,2.05504]
[1743835098947,2.1139021,1810.7,1810.6,2.05504]
[1743835100547,2.1139021,1810.7,1810.6,0.66294]
[1743835100747,2.8758021,1810.7,1810.6,0.66294]
[1743835106449,2.8758021,1810.7,1810.6,1.41842664]
[1743835106649,2.8758021,1810.7,1810.6,2.93572664]
[1743835106849,1.4509921,1810.7,1810.6,2.93572664]
[1743835107052,0.0082921,1810.7,1810.6,2.93572664]
[1743835107642,0.6712021,1810.7,1810.6,2.93572664]
[1743835108853,0.0082921,1810.7,1810.6,2.93572664]
[1743835109052,0.0082921,1810.7,1810.6,2.93593438]
[1743835110053,0.6712021,1810.7,1810.6,2.93593438]
[1743835110854,0.6712021,1810.7,1810.6,2.93606009]
[1743835111655,0.6712021,1810.7,1810.6,2.93606068]
[1743835113346,2.0995021,1810.7,1810.6,2.93606068]
[1743835115056,1.4365921,1810.7,1810.6,2.93606068]
[1743835115357,0.0082921,1810.7,1810.6,2.93606068]
[1743835116656,0.0082921,1810.7,1810.6,2.93646922]
[1743835118559,0.6712021,1810.7,1810.6,2.93646922]
[1743835119455,0.0082921,1810.7,1810.6,2.93646922]
[1743835119760,2.1e-06,1810.7,1810.6,5.96507435]
[1743835120259,2.1e-06,1810.7,1810.6,3.46507435]
[1743835122163,2.1e-06,1810.7,1810.6,3.46373606]
[1743835125763,2.1e-06,1810.7,1810.6,2.18024]
[1743835125966,2.1e-06,1810.7,1810.6,3.46320308]
[1743835127869,2.1e-06,1810.7,1810.6,3.46316263]
[1743835129572,2.1e-06,1810.7,1810.6,3.46297712]
[1743835131565,2.1e-06,1810.7,1810.6,3.46294899]
[1743835135186,2.1e-06,1810.7,1810.6,3.46306113]
[1743835135487,2.1e-06,1810.7,1810.6,6.67086113]
[1743835135686,2.1e-06,1810.7,1810.6,3.46306113]
[1743835135880,2.1e-06,1810.7,1810.6,6.67086113]
[1743835136980,2.1e-06,1810.7,1810.6,6.67099657]
[1743835138286,2.1e-06,1810.7,1810.6,3.46319657]
[1743835138487,2.1e-06,1810.7,1810.6,6.67099657]
[1743835139587,2.1e-06,1810.7,1810.6,6.67100459]
[1743835140787,2.1e-06,1810.7,1810.6,6.67110365]
[1743835141990,2.1e-06,1810.7,1810.6,6.67113747]
[1743835142291,2.1e-06,1810.7,1810.6,3.46333747]
[1743835142587,2.1e-06,1810.7,1810.6,6.67113747]
[1743835143791,2.1e-06,1810.7,1810.6,6.67146018]
[1743835145692,2.1e-06,1810.7,1810.6,6.67179109]
[1743835147686,2.1e-06,1810.7,1810.6,6.67211277]
[1743835150596,0.7397021,1810.7,1810.6,5.15481277]
[1743835151298,0.7397021,1810.7,1810.6,5.15512154]
[1743835153095,0.7397021,1810.7,1810.6,1.94778144]
[1743835156896,0.7397021,1810.7,1810.6,1.94784809]
[1743835158191,1.4026121,1810.7,1810.6,1.41917324]
[1743835158397,2.9336121,1810.7,1810.6,1.41917324]
[1743835158598,2.9336121,1810.7,1810.6,0.66294]
[1743835158801,2.9336121,1810.7,1810.6,1.41907853]
[1743835159303,12.1754121,1810.7,1810.6,0.75613853]
[1743835159597,0.66302,1810.4,1810.3,0.66302]
[1743835159802,0.66302,1810.4,1810.3,1.41879803]
[1743835160601,1.36712,1810.4,1810.3,1.41878326]
[1743835161109,0.7041,1810.4,1810.3,1.41878326]
[1743835161405,0.7041,1810.4,1810.3,0.66302]
[1743835162406,1.36712,1810.4,1810.3,0.66302]
[1743835163109,0.7041,1810.4,1810.3,0.66302]
[1743835163605,2.90192,1810.4,1810.3,0.66302]
[1743835165307,2.2389,1810.4,1810.3,0.66302]
[1743835165600,2.90192,1810.4,1810.3,0.66302]
[1743835166002,2.2389,1810.4,1810.3,0.66302]
[1743835169302,1.5348,1810.4,1810.3,0.66302]
[1743835169505,1.5348,1810.4,1810.3,2.12992]
[1743835174910,1.5348,1810.4,1810.3,3.60212]
[1743835178615,2.19782,1810.4,1810.3,3.60212]
[1743835179719,1.5348,1810.4,1810.3,3.60212]
[1743835180019,2.19782,1810.4,1810.3,3.60212]
[1743835180418,1.5348,1810.4,1810.3,4.35603761]
[1743835181509,1.5348,1810.4,1810.3,4.35622542]
[1743835183316,1.5348,1810.4,1810.3,3.60212]
[1743835183522,1.5348,1810.4,1810.3,4.35639978]
[1743835185327,1.5348,1810.4,1810.3,4.35686178]
[1743835186122,2.19782,1810.4,1810.3,4.35686178]
[1743835186425,1.5348,1810.4,1810.3,4.35686178]
[1743835187126,1.5348,1810.4,1810.3,4.35759502]
[1743835189128,1.5348,1810.4,1810.3,4.35848938]
[1743835189338,2.19782,1810.4,1810.3,4.35848938]
[1743835190535,2.19782,1810.4,1810.3,1.41938938]
[1743835190832,2.19782,1810.4,1810.3,1.41952226]
[1743835191529,1.65766,1810.3,1809.7,4.86595]
[1743835191735,0.66318,1810.0,1809.9,0.66318]
[1743835191929,2.17191,1810.2,1810.1,0.66313]
[1743835192234,2.15138477,1810.2,1810.1,0.66313]
[1743835193329,0.66313,1810.1,1810.0,2.84593]
[1743835193733,0.66313,1810.2,1810.1,0.66312]
[1743835195537,2.07413,1810.2,1810.1,0.66312]
[1743835196539,0.66313,1810.1,1810.0,2.84595]
[1743835196833,2.14863,1810.1,1810.0,2.84595]
[1743835203043,0.66316,1810.0,1809.9,0.66317]
[1743835203232,3.58566,1810.0,1809.9,0.64264477]
[1743835203632,3.58566,1810.0,1809.9,1.39213432]
[1743835203839,2.9225,1810.0,1809.9,1.39213432]
[1743835204037,1.4408,1810.0,1809.9,2.88453432]
[1743835204238,1.42061,1810.2,1810.1,0.66313]
[1743835204445,1.4408,1810.2,1810.1,0.66313]
[1743835204843,2.10389,1810.2,1810.1,3.6619851]
[1743835205045,2.10389,1810.2,1810.1,2.91253]
[1743835205746,0.66313,1810.1,1810.0,1.37653]
[1743835205943,2.08483,1810.1,1810.0,4.3211702]
[1743835206146,2.08483,1810.1,1810.0,0.66313]
[1743835206945,0.66319,1810.0,1809.9,0.66317]
[1743835207149,2.08489,1810.0,1809.9,1.39204173]
[1743835208844,0.66312,1810.2,1810.1,0.6631]
[1743835209047,1.33939477,1810.2,1810.1,0.6631]
[1743835210147,2.84709477,1810.2,1810.1,0.6631]
[1743835210749,2.15029477,1810.2,1810.1,0.6631]
[1743835210950,2.15029477,1810.2,1810.1,2.1228]
[1743835211850,2.15029477,1810.2,1810.1,0.6631]
[1743835213049,0.66313,1810.1,1810.0,1.39394]
[1743835213344,2.78253,1810.1,1810.0,1.39394]
[1743835213745,2.78253,1810.1,1810.0,0.66314]
[1743835214547,0.66316,1810.0,1809.9,2.75176]
[1743835214751,2.76546,1810.0,1809.9,3.48081885]
[1743835215350,2.76546,1810.0,1809.9,3.48081531]
[1743835215551,2.05116,1810.0,1809.9,2.11654054]
[1743835217144,2.05116,1810.0,1809.9,2.11668227]
[1743835217948,2.05116,1810.0,1809.9,3.62698227]
[1743835228157,2.05116,1810.0,1809.9,3.62787242]
[1743835229356,3.2078,1810.2,1810.1,0.66313]
[1743835229550,3.85036477,1810.2,1810.1,1.41374242]
[1743835229751,3.85036477,1810.2,1810.1,2.88834242]
[1743835229952,3.85036477,1810.2,1810.1,4.34524242]
[1743835232059,3.85036477,1810.2,1810.1,4.3452613]
[1743835233063,0.66299,1810.5,1810.4,0.66298]
[1743835233256,0.66299,1810.5,1810.4,1.4136113]
[1743835233952,0.66299,1810.5,1810.4,1.41315143]
[1743835234150,0.66299,1810.5,1810.4,2.90925143]
[1743835234348,0.66299,1810.5,1810.4,2.15908]
[1743835234649,0.66299,1810.5,1810.4,2.90899587]
[1743835235063,0.66299,1810.5,1810.4,2.15908]
[1743835235258,2.09719,1810.5,1810.4,2.15908]
[1743835235561,2.09719,1810.5,1810.4,0.66298]
[1743835237765,5.30499,1810.5,1810.4,0.66298]
[1743835243467,5.30499,1810.5,1810.4,0.66302]
[1743835244468,3.87079,1810.5,1810.4,0.66302]
[1743835244970,3.87079,1810.5,1810.4,2.08782]
[1743835245367,5.36729,1810.5,1810.4,2.08782]
[1743835245566,5.36729,1810.5,1810.4,1.4248]
[1743835246572,5.36729,1810.5,1810.4,2.08782]
[1743835247970,3.87079,1810.5,1810.4,2.08782]
[1743835248566,0.66305,1810.3,1810.2,2.15916]
[1743835248766,3.87085,1810.3,1810.2,1.41589]
[1743835249468,5.40395,1810.3,1810.2,2.86439]
[1743835250976,3.2078,1810.3,1810.2,3.61349729]
[1743835251162,0.66304,1810.4,1810.3,0.66305]
[1743835251364,0.66304,1810.4,1810.3,2.16815]
[1743835252774,3.87084,1810.4,1810.3,2.16815]
[1743835254465,3.87084,1810.4,1810.3,2.88765]
[1743835256570,3.87084,1810.4,1810.3,3.63733105]
[1743835257777,3.87084,1810.4,1810.3,3.63749658]
[1743835259681,3.87084,1810.4,1810.3,3.63794296]
[1743835259984,3.87084,1810.4,1810.3,0.75029296]
[1743835260181,0.66313,1810.1,1810.0,0.66313]
[1743835260380,0.66313,1810.1,1810.0,2.81637723]
[1743835261067,0.66313,1810.1,1810.0,2.81648859]
[1743835261272,0.66313,1810.1,1810.0,0.75045859]
[1743835261472,2.09643,1810.1,1810.0,0.75045859]
[1743835261682,3.60493,1810.1,1810.0,0.75045859]
[1743835262483,3.60493,1810.1,1810.0,1.41361859]
[1743835262680,3.60493,1810.1,1810.0,1.41333042]
[1743835263082,3.60493,1810.1,1810.0,0.75017042]
[1743835263583,3.60493,1810.1,1810.0,1.41333042]
[1743835263790,2.90573,1810.1,1810.0,1.41333042]
[1743835264082,2.17163,1810.1,1810.0,2.81573042]
[1743835264688,0.66313,1810.1,1810.0,2.81573042]
[1743835268185,0.66313,1810.1,1810.0,2.1520343]
[1743835268380,2.17323,1810.1,1810.0,1.4127943]
[1743835268879,0.66313,1810.1,1810.0,2.8964943]
[1743835270086,0.66313,1810.1,1810.0,2.89639039]
[1743835275488,2.08013,1810.1,1810.0,2.89639039]
[1743835275790,2.08013,1810.1,1810.0,2.14686]
[1743835277087,1.417,1810.1,1810.0,2.14686]
[1743835277285,0.66313,1810.1,1810.0,2.14686]
[1743835281693,2.14903,1810.1,1810.0,2.14686]
[1743835285404,2.14903,1810.1,1810.0,2.89691109]
[1743835286698,2.14903,1810.1,1810.0,2.89704598]
[1743835288601,2.14903,1810.1,1810.0,2.89746175]
[1743835291098,3.87092,1810.2,1810.1,0.66313]
[1743835291400,3.87092,1810.2,1810.1,3.63234058]
[1743835291605,3.87092,1810.2,1810.1,2.88133]
[1743835292004,5.40732,1810.2,1810.1,2.88133]
[1743835293507,5.40732,1810.2,1810.1,0.66313]
[1743835298210,2.19952,1810.2,1810.1,0.66313]
[1743835298405,5.40732,1810.2,1810.1,0.66313]
[1743835300216,0.66313,1810.1,1810.0,1.38805]
[1743835300430,3.54543,1810.1,1810.0,1.41423496]
[1743835301613,3.54543,1810.1,1810.0,1.41425692]
[1743835303420,3.54543,1810.1,1810.0,1.41428319]
[1743835306422,3.54543,1810.1,1810.0,0.75113319]
[1743835306619,0.66322,1809.9,1809.8,0.6632]
[1743835306819,0.66322,1809.9,1809.8,4.32417015]
[1743835307121,0.66322,1809.9,1809.8,4.32416624]
[1743835309017,0.66322,1809.9,1809.8,4.32393305]
[1743835310828,0.66322,1809.9,1809.8,4.3238114]
[1743835312629,0.66322,1809.9,1809.8,4.3237383]
[1743835314534,0.66322,1809.9,1809.8,4.32367757]
[1743835315737,0.66322,1809.9,1809.8,4.32365089]
[1743835316328,0.66322,1809.9,1809.8,4.32364592]
[1743835318234,0.66322,1809.9,1809.8,4.32361396]
[1743835320137,0.66322,1809.9,1809.8,4.32358429]
[1743835325340,5.993,1809.9,1809.2,8.68292885]
[1743835325531,0.66342,1809.3,1809.2,8.68292885]
[1743835326030,3.66442,1809.3,1809.2,8.68292885]
[1743835326345,9.65842,1809.3,1809.2,8.68292885]
[1743835326845,9.65842,1809.3,1809.2,4.43985129]
[1743835327240,0.66346,1809.2,1809.1,13.03268538]
[1743835327446,3.87126,1809.2,1809.1,13.03268538]
[1743835327650,6.37126,1809.2,1809.1,13.03268538]
[1743835330447,7.90006,1809.2,1809.1,13.03268538]
[1743835332139,11.39806,1809.2,1809.1,13.03268538]
[1743835333248,8.89806,1809.2,1809.1,13.03268538]
[1743835336752,5.40006,1809.2,1809.1,13.03268538]
[1743835337248,3.87126,1809.2,1809.1,14.56448538]
[1743835337446,3.87126,1809.2,1809.1,15.22797538]
[1743835338255,3.87126,1809.2,1809.1,14.56448538]
[1743835340151,3.87126,1809.2,1809.1,13.03268538]
[1743835343053,6.37126,1809.2,1809.1,13.03268538]
[1743835343752,3.87126,1809.2,1809.1,13.03268538]
[1743835345450,3.97121108,1809.2,1809.1,13.03268538]
[1743835345649,3.87126,1809.2,1809.1,13.03268538]
[1743835346149,3.87126,1809.2,1809.0,17.36585771]
[1743835346150,0.66353,1809.0,1808.9,15.88882395]
[1743835346457,7.52025659,1809.0,1808.9,5.25965655]
[1743835346946,9.03215659,1809.0,1808.9,2.77049655]
[1743835347751,9.03215659,1809.0,1808.9,1.24897655]
[1743835347949,9.03215659,1809.0,1808.9,6.55e-06]
[1743835349143,9.03216159,1809.0,1808.9,6.55e-06]
[1743835350456,0.6636,1808.8,1808.7,27.57068657]
[1743835350647,3.8714,1808.8,1808.7,27.57068657]
[1743835352448,21.12058093,1808.8,1808.7,27.57068657]
[1743835364969,21.86908093,1808.8,1808.7,27.57068657]
[1743835367971,21.96898172,1808.8,1808.7,27.57068657]
[1743835370476,21.86908093,1808.8,1808.7,27.57068657]
[1743835370873,21.96897723,1808.8,1808.7,27.57068657]
[1743835371170,21.96897696,1808.8,1808.7,27.57068657]
[1743835371372,21.96897686,1808.8,1808.7,27.57068657]
[1743835371570,21.86908093,1808.8,1808.7,27.57068657]
[1743835371872,21.96897733,1808.8,1808.7,27.57068657]
[1743835372065,21.22047733,1808.8,1808.7,27.57068657]
[1743835372465,21.12058093,1808.8,1808.7,27.57068657]
[1743835373264,21.22047622,1808.8,1808.7,5.4450149]
[1743835373572,0.66364,1808.7,1808.6,20.02702562]
[1743835373770,6.43293529,1808.7,1808.6,18.29377562]
[1743835374371,6.43293529,1808.7,1808.6,14.78046562]
[1743835374571,6.43293529,1808.7,1808.6,11.39490562]
[1743835374766,6.43293529,1808.7,1808.6,9.57985562]
[1743835375366,6.43293529,1808.7,1808.6,8.32656562]
[1743835375566,4.29453529,1808.7,1808.6,7.03368562]
[1743835375767,4.29453529,1808.7,1808.6,8.51698562]
[1743835375968,3.536,1808.7,1808.6,11.01698562]
[1743835376172,20.45698093,1808.8,1808.6,11.01698562]
[1743835376373,21.12061093,1808.8,1808.6,10.19736562]
[1743835376572,0.66364,1808.7,1808.6,9.53368562]
[1743835376773,20.45698093,1808.8,1808.6,9.53368562]
[1743835377075,20.45698093,1808.8,1808.6,10.19736562]
[1743835377076,60.65154867,1808.7,1808.6,10.19736562]
[1743835377862,60.65154867,1808.7,1808.6,10.94183715]
[1743835378877,60.65154867,1808.7,1808.6,10.94155564]
[1743835379776,34.99709388,1808.7,1808.6,10.94155564]
[1743835381778,34.99709388,1808.7,1808.6,10.19736562]
[1743835382078,34.99709388,1808.7,1808.6,10.94088419]
[1743835382476,34.99709388,1808.7,1808.6,14.48088419]
[1743835382477,33.17706115,1808.7,1808.6,14.48088419]
[1743835383271,33.17706115,1808.7,1808.6,15.00832312]
[1743835383476,33.17706115,1808.7,1808.6,15.00808704]
[1743835383673,33.17706115,1808.7,1808.6,15.00808709]
[1743835384075,33.17706115,1808.7,1808.6,14.48088419]
[1743835385581,33.17706115,1808.7,1808.6,14.47970242]
[1743835386281,48.35479885,1808.7,1808.6,14.47970242]
[1743835386578,48.35479885,1808.7,1808.6,14.47949228]
[1743835387479,48.35479885,1808.7,1808.6,14.4794929]
[1743835388680,48.35479885,1808.7,1808.6,11.9794929]
[1743835388881,48.35479885,1808.7,1808.6,14.4794929]
[1743835391286,48.35479885,1808.7,1808.6,15.2124929]
[1743835392284,28.83514019,1808.7,1808.6,15.2124929]
[1743835392784,28.83514019,1808.7,1808.6,12.71172499]
[1743835394084,28.83514019,1808.7,1808.6,8.43036562]
[1743835394582,28.83514019,1808.7,1808.6,11.67175368]
[1743835395188,28.83514019,1808.7,1808.6,9.17175368]
[1743835396381,28.83514019,1808.7,1808.6,10.64125368]
[1743835397677,28.83514019,1808.8,1808.7,0.66364]
[1743835397888,28.83514019,1808.8,1808.7,6.05492806]
[1743835398484,28.83514019,1808.8,1808.7,5.31354]
[1743835399378,28.83514019,1808.8,1808.7,6.05504119]
[1743835399777,28.83514019,1808.8,1808.7,6.05509717]
[1743835399981,28.83514019,1808.8,1808.7,6.0550972]
[1743835401082,15.1777377,1808.8,1808.7,6.0550972]
[1743835401289,15.1777377,1808.8,1808.6,7.76668562]
[1743835401489,15.1777377,1808.8,1808.7,0.66364]
[1743835404190,12.98915056,1808.8,1808.7,0.66364]
[1743835404393,12.98915056,1808.8,1808.7,2.17764]
[1743835405300,12.98915056,1808.8,1808.7,2.70508431]
[1743835405898,12.98915056,1808.8,1808.7,1.19108431]
[1743835406194,14.52075056,1808.8,1808.7,1.19108431]
[1743835407101,14.52075056,1808.8,1808.7,1.19212356]
[1743835407298,14.52075056,1808.8,1808.7,1.19212353]
[1743835408896,14.52075056,1808.8,1808.7,0.66364]
[1743835409101,14.52075056,1808.8,1808.7,1.19244428]
[1743835410704,28.17815305,1808.8,1808.7,1.19244428]
[1743835410907,28.17815305,1808.8,1808.7,1.19262449]
[1743835413306,28.17815305,1808.8,1808.7,1.93251429]
[1743835414507,28.17815305,1808.8,1808.7,1.93258564]
[1743835414806,28.17815305,1808.8,1808.7,3.42598564]
[1743835416106,33.88595305,1808.8,1808.6,3.89263126]
[1743835416301,1.4257,1808.7,1808.6,4.55631126]
[1743835416899,1.4257,1808.7,1808.6,5.94661126]
[1743835418705,1.4257,1808.7,1808.6,9.49661126]
[1743835419010,15.08310249,1808.7,1808.6,8.10631126]
[1743835422113,32.01279388,1808.7,1808.6,8.10631126]
[1743835423315,32.01279388,1808.7,1808.6,4.55631126]
[1743835428322,32.01279388,1808.7,1808.6,5.29773807]
[1743835429018,32.01279388,1808.7,1808.6,5.29771365]
[1743835429522,32.01279388,1808.7,1808.6,10.68051365]
[1743835429523,30.58709388,1808.7,1808.6,10.68051365]
[1743835430824,30.58709388,1808.7,1808.6,10.68042873]
[1743835431223,50.15451022,1808.7,1808.6,10.68042873]
[1743835432627,50.15451022,1808.7,1808.6,10.68047322]
[1743835435523,53.31815022,1808.7,1808.6,7.84179322]
[1743835435727,56.52595022,1808.7,1808.6,3.89263126]
[1743835436326,58.04935022,1808.7,1808.6,3.89263126]
[1743835438929,83.70380501,1808.7,1808.6,3.89263126]
[1743835439125,83.70380501,1808.7,1808.6,4.55631126]
[1743835439628,81.20380501,1808.7,1808.6,4.55631126]
[1743835441130,55.54935022,1808.7,1808.6,4.55631126]
[1743835442822,55.54935022,1808.7,1808.6,3.89263126]
[1743835446233,55.54935022,1808.7,1808.6,4.55631126]
[1743835451839,55.54935022,1808.7,1808.6,3.89263126]
[1743835453738,55.54935022,1808.7,1808.6,4.55631126]
[1743835460534,35.98193388,1808.7,1808.6,4.55631126]
[1743835461333,35.31829388,1808.7,1808.6,4.55631126]
[1743835461533,35.31829388,1808.7,1808.6,6.77801126]
[1743835462040,35.98193388,1808.7,1808.6,6.77801126]
[1743835464142,35.31829388,1808.7,1808.6,6.77801126]
[1743835464839,35.98193388,1808.7,1808.6,6.77801126]
[1743835465341,35.98193388,1808.7,1808.6,7.52031878]
[1743835467641,35.98193388,1808.7,1808.6,7.52018144]
[1743835467938,35.31829388,1808.7,1808.6,7.52018144]
[1743835468549,35.31829388,1808.7,1808.6,7.52016002]
[1743835468844,35.98193388,1808.7,1808.6,7.52016002]
[1743835469651,35.31829388,1808.7,1808.6,7.52016002]
[1743835470648,35.98193388,1808.7,1808.6,7.52016002]
[1743835470845,35.31829388,1808.7,1808.6,6.77801126]
[1743835471045,35.98193388,1808.7,1808.6,7.52014648]
[1743835472046,35.98193388,1808.7,1808.6,6.77801126]
[1743835472256,35.98193388,1808.7,1808.6,7.52013706]
[1743835472654,35.98193388,1808.7,1808.6,6.77801126]
[1743835473144,35.98193388,1808.7,1808.6,7.52013184]
[1743835473548,35.31829388,1808.7,1808.6,7.52013184]
[1743835473750,35.31829388,1808.7,1808.6,6.77801126]
[1743835474150,35.31829388,1808.7,1808.6,7.52012829]
[1743835474653,35.31829388,1808.7,1808.6,6.77801126]
[1743835475052,35.31829388,1808.7,1808.6,7.52012898]
[1743835475755,35.31829388,1808.7,1808.6,7.52013659]
[1743835482570,60.97274867,1808.7,1808.6,7.52013659]
[1743835482966,60.97274867,1808.7,1808.6,7.52017206]
[1743835484058,60.97274867,1808.7,1808.6,7.52019299]
[1743835484771,60.97274867,1808.7,1808.6,6.77801126]
[1743835485067,60.97274867,1808.7,1808.6,7.52022081]
[1743835486667,60.97274867,1808.7,1808.6,7.52029443]
[1743835488475,60.97274867,1808.7,1808.6,7.52037571]
[1743835489370,64.13638867,1808.7,1808.6,3.89263126]
[1743835489768,61.63638867,1808.7,1808.6,3.89263126]
[1743835495773,35.98193388,1808.7,1808.6,3.89263126]
[1743835499075,39.54193388,1808.7,1808.6,4.55631126]
[1743835499276,39.54193388,1808.7,1808.6,3.89263126]
[1743835503772,65.19638867,1808.7,1808.6,3.89263126]
[1743835504176,59.44934867,1808.7,1808.6,4.55631126]
[1743835504373,60.11298867,1808.7,1808.6,7.50961126]
[1743835505182,59.44934867,1808.7,1808.6,7.50961126]
[1743835505478,60.11298867,1808.7,1808.6,7.50961126]
[1743835508373,61.64868867,1808.7,1808.6,7.50961126]
[1743835509079,35.99423388,1808.7,1808.6,6.84593126]
[1743835509674,35.99423388,1808.7,1808.6,7.50961126]
[1743835511481,61.64868867,1808.7,1808.6,7.50961126]
[1743835512183,60.98504867,1808.7,1808.6,7.50961126]
[1743835512387,59.44934867,1808.7,1808.6,7.50961126]
[1743835514087,33.79489388,1808.7,1808.6,7.50961126]
[1743835518387,33.79489388,1808.7,1808.6,8.2543365]
[1743835518782,33.79489388,1808.7,1808.6,10.7543365]
[1743835519691,33.79489388,1808.7,1808.6,8.2543365]
[1743835520291,33.79489388,1808.7,1808.6,7.50961126]
[1743835520493,30.58709388,1808.7,1808.6,10.75421126]
[1743835521594,25.04805388,1808.7,1808.6,10.75421126]
[1743835523697,23.88063388,1808.7,1808.6,10.75421126]
[1743835524099,22.64840388,1808.7,1808.6,10.75344452]
[1743835524990,24.29642388,1808.7,1808.6,5.30014452]
[1743835525190,24.29642388,1808.7,1808.6,7.55871821]
[1743835525898,24.73848207,1808.7,1808.6,7.55871821]
[1743835527188,21.53068207,1808.7,1808.6,7.55871821]
[1743835527390,20.21835207,1808.7,1808.6,13.26651821]
[1743835527596,20.21835207,1808.7,1808.6,13.2665663]
[1743835528599,20.21835207,1808.7,1808.6,7.5587663]
[1743835528996,17.37174958,1808.7,1808.6,7.5587663]
[1743835529699,15.27061958,1808.7,1808.6,7.5587663]
[1743835529898,13.02825619,1808.8,1808.7,0.66364]
[1743835530095,8.72610619,1808.8,1808.7,6.42659504]
[1743835530401,6.88200619,1808.8,1808.7,8.92659504]
[1743835530591,6.88200619,1808.8,1808.7,18.10059504]
[1743835530796,4.63828619,1808.8,1808.7,18.10059504]
[1743835531201,2.50218619,1808.8,1808.7,18.10014354]
[1743835531402,0.08455619,1808.8,1808.7,18.10014354]